fUST/lending_fUST_20241008
["ID","MTS","AMOUNT","RATE_DAILY","PERIOD"]
[340015071,1728330643213,-500.0,0.00029973,5]
[340015073,1728330643225,-500.0,0.00029973,2]
[340015075,1728330643236,-500.38316548,0.00029973,5]
[340015076,1728330643246,-500.0,0.00029973,5]
[340015077,1728330643257,-500.0,0.00029973,5]
[340015078,1728330643268,-500.26284312,0.00029973,5]
[340015079,1728330643278,-500.0,0.00029973,5]
[340015080,1728330643291,-29271.52596956,0.00029979,7]
[340015081,1728330643303,-150.01,0.00029988,2]
[340015082,1728330643314,-22240.3438717,0.0002999,4]
[340015083,1728330643324,-5340.00430205,0.0002999,4]
[340015084,1728330643336,-6721.96481255,0.0002999,4]
[340015085,1728330643347,-500.0,0.00029999,2]
[340015086,1728330643357,-208.4256556,0.00029999,2]
[340015087,1728330643367,-500.0,0.00029999,2]
[340015088,1728330643379,-401.73291389,0.00029999,2]
[340015089,1728330643390,-500.0,0.00029999,2]
[340015090,1728330643399,-500.0,0.00029999,2]
[340015091,1728330643413,-594.13484581,0.00029999,2]
[340015092,1728330643424,-500.0,0.00029999,2]
[340015093,1728330643434,-8835.84159277,0.0003,7]
[340015101,1728330681665,7.2793535,0.000312,120]
[340015107,1728331460659,1000.0,0.0003041,120]
[340015108,1728331715972,-204.740111,0.00018,2]
[340015109,1728331716000,-150.0,0.00021,2]
[340015110,1728331716026,-204.740111,0.00024262,2]
[340015111,1728331716052,-19.71361221,0.0002488,2]
[340015161,1728331832127,-1955.719861,0.00024608,2]
[340015163,1728331832140,-1044.280139,0.00024608,2]
[340015165,1728331832151,-201.37487879,0.0002488,2]
[340015167,1728331832161,-250.0,0.00025177,2]
[340015169,1728331832173,-250.0,0.00025246,2]
[340015171,1728331832183,-250.0,0.00025315,2]
[340015173,1728331832193,-250.0,0.00025384,2]
[340015174,1728331832202,-250.0,0.00025453,2]
[340015176,1728331832212,-250.0,0.00025522,2]
[340015178,1728331832222,-159.535284,0.00025544,2]
[340015180,1728331832232,-250.0,0.00025591,2]
[340015182,1728331832241,-300.0,0.00025617,2]
[340015184,1728331832251,-300.0,0.00025617,2]
[340015186,1728331832261,-794.51934912,0.00025618,2]
[340015193,1728331832330,-286.73075199,0.00025618,2]
[340015195,1728331832343,-454.51525473,0.00025618,2]
[340015238,1728331838223,-1514.63671564,0.00025618,2]
[340015239,1728331838236,-21849.59792852,0.00025618,2]
[340015240,1728331838245,-250.0,0.0002566,2]
[340015241,1728331838255,-601.8794918,0.00025661,2]
[340015242,1728331838265,-202.3929609,0.00025707,2]
[340015243,1728331838275,-250.0,0.00025729,2]
[340015244,1728331838284,-250.0,0.00025754,2]
[340015245,1728331838295,-250.0,0.00025798,2]
[340015246,1728331838306,-250.0,0.00025867,2]
[340015247,1728331838315,-250.0,0.00025936,2]
[340015249,1728331838327,-250.0,0.00026005,2]
[340015251,1728331838336,-250.0,0.00026074,2]
[340015253,1728331838345,-250.0,0.00026144,2]
[340015255,1728331838355,-250.0,0.00026213,2]
[340015256,1728331838365,-250.0,0.00026282,2]
[340015258,1728331838376,-250.0,0.00026351,2]
[340015262,1728331838389,-250.0,0.0002642,2]
[340015263,1728331838399,-250.0,0.00026489,2]
[340015265,1728331838410,-248.2,0.000267,2]
[340015267,1728331838420,-300.0,0.000277,2]
[340015269,1728331838429,-420.0,0.00027734,2]
[340015270,1728331838438,-420.0,0.00028178,2]
[340015272,1728331838447,-1075.1039304,0.00028595,2]
[340015274,1728331838457,-300.0,0.000287,2]
[340015275,1728331838466,-153.0,0.00029041,2]
[340015277,1728331838476,-153.0,0.00029041,2]
[340015279,1728331838485,-153.0,0.00029041,2]
[340015281,1728331838495,-153.0,0.00029041,2]
[340015283,1728331838505,-153.0,0.00029041,2]
[340015285,1728331838515,-1075.1039304,0.00029095,2]
[340015286,1728331838526,-413.1195984,0.00029178,2]
[340015288,1728331838535,-153.0,0.00029178,2]
[340015290,1728331838544,-413.1195984,0.00029178,2]
[340015291,1728331838554,-209.6916673,0.00029178,2]
[340015292,1728331838565,-413.1195984,0.00029178,2]
[340015293,1728331838576,-209.6916673,0.00029178,2]
[340015294,1728331838586,-209.0475432,0.00029178,2]
[340015295,1728331838596,-413.1195984,0.00029178,2]
[340015296,1728331838606,-411.4125664,0.00029178,2]
[340015297,1728331838616,-153.68125924,0.00029179,2]
[340015298,1728331838626,-8869.76747386,0.0002947,2]
[340015299,1728331838635,-274.12265899,0.00029495,2]
[340015300,1728331838645,-1075.1039304,0.00029595,2]
[340015301,1728331838654,-274.12265899,0.00029693,2]
[340015302,1728331838664,-300.0,0.000297,2]
[340015303,1728331838674,-467.0,0.0002982,21]
[340015304,1728331838683,-177.30047507,0.00029886,2]
[340015305,1728331838693,-274.12265899,0.0002989,2]
[340015306,1728331838702,-500.0,0.00029973,5]
[340015307,1728331838711,-500.0,0.00029973,5]
[340015308,1728331838721,-169.98480447,0.00029973,5]
[340015309,1728331838730,-500.0,0.00029973,5]
[340015310,1728331838740,-14204.74,0.00029976,10]
[340015311,1728331838750,-11787.7234725,0.0002998,4]
[340015312,1728331838760,-291.53,0.0002998,3]
[340015313,1728331838770,-874.62,0.0002998,3]
[340015314,1728331838779,-11787.7234725,0.0002998,4]
[340015315,1728331838788,-7914.78263475,0.00029986,4]
[340015316,1728331838800,-12087.70669365,0.00029986,4]
[340015317,1728331838810,-11787.7234725,0.00029986,4]
[340015318,1728331838819,-13889.96369267,0.0002999,4]
[340015319,1728331838834,-3848.45443033,0.0002999,4]
[340015320,1728331838846,-251.83316219,0.0002999,4]
[340015350,1728331840201,-2012.23804321,0.0002999,4]
[340015351,1728331840211,-28219.05347098,0.0002999,7]
[340015353,1728331840222,-6641.88255636,0.0002999,7]
[340015355,1728331840232,-40004.9786568,0.0002999,4]
[340015357,1728331840244,-23575.446945,0.0002999,4]
[340015359,1728331840256,-362.02430139,0.00029994,2]
[340015361,1728331840266,-500.0,0.00029994,2]
[340015363,1728331840275,-522.7243695,0.00029994,2]
[340015365,1728331840285,-225.1740573,0.00029994,2]
[340015377,1728331840414,-206.48477308,0.00029994,2]
[340015379,1728331840424,-500.0,0.00029994,2]
[340015380,1728331840434,-500.0,0.00029994,2]
[340015382,1728331840443,-500.0,0.00029994,2]
[340015384,1728331840455,-500.0,0.00029994,2]
[340015386,1728331840465,-500.0,0.00029994,2]
[340015388,1728331840476,-368.54890353,0.00029994,2]
[340015390,1728331840487,-47551.64668816,0.00029996,7]
[340015392,1728331840499,-150.01,0.00029998,2]
[340015394,1728331840511,-196.82751364,0.00029998,2]
[340015396,1728331840521,-14729.63453158,0.0003,7]
[340015398,1728331840530,-56892.0193322,0.0003,9]
[340015400,1728331840541,-1745.77907276,0.0003,7]
[340015403,1728331840569,-1176.78656976,0.0003,7]
[340015404,1728331840587,-6611.43435748,0.0003,7]
[340015405,1728331840600,-499.999999,0.0003,2]
[340015406,1728331840610,-152.0,0.0003,2]
[340015407,1728331840620,-263.0,0.0003,2]
[340015408,1728331840630,-151.0,0.0003,7]
[340015409,1728331840640,-151.0,0.0003,7]
[340015410,1728331840652,-151.0,0.0003,7]
[340015411,1728331840662,-151.0,0.0003,7]
[340015412,1728331840671,-192.994374,0.0003,7]
[340015413,1728331840682,-192.994374,0.0003,7]
[340015414,1728331840691,-587.0,0.00030026,2]
[340015415,1728331840701,-1075.1039304,0.00030095,2]
[340015416,1728331840710,-228.315246,0.00030137,60]
[340015417,1728331840719,-153.0,0.00030219,2]
[340015418,1728331840728,-153.0,0.00030219,2]
[340015419,1728331840739,-153.0,0.00030219,2]
[340015420,1728331840749,-153.0,0.00030219,2]
[340015421,1728331840758,-153.0,0.00030219,2]
[340015422,1728331840767,-153.0,0.00030219,2]
[340015423,1728331840777,-153.0,0.00030219,2]
[340015424,1728331840787,-153.0,0.00030219,2]
[340015425,1728331840798,-153.0,0.00030219,2]
[340015426,1728331840808,-153.0,0.0003022,2]
[340015427,1728331840817,-153.0,0.0003022,2]
[340015428,1728331840827,-153.0,0.0003022,2]
[340015429,1728331840836,-153.0,0.0003022,2]
[340015430,1728331840845,-153.0,0.0003022,2]
[340015431,1728331840855,-153.0,0.0003022,2]
[340015432,1728331840865,-153.0,0.0003022,2]
[340015433,1728331840874,-153.0,0.0003022,2]
[340015434,1728331840883,-153.0,0.00030225,2]
[340015435,1728331840893,-153.0,0.00030225,2]
[340015436,1728331840905,-153.0,0.00030225,2]
[340015437,1728331840915,-153.0,0.00030225,2]
[340015438,1728331840927,-153.0,0.00030225,2]
[340015439,1728331840939,-153.0,0.00030225,2]
[340015440,1728331840951,-153.0,0.00030225,2]
[340015441,1728331840962,-153.0,0.00030225,2]
[340015442,1728331840973,-153.0,0.00030226,2]
[340015443,1728331840983,-153.0,0.00030226,2]
[340015444,1728331840994,-153.0,0.00030226,2]
[340015445,1728331841004,-153.0,0.00030226,2]
[340015446,1728331841016,-153.0,0.00030226,2]
[340015447,1728331841027,-150.0,0.000304,2]
[340015448,1728331841038,-1636.0,0.0003041,120]
[340015449,1728331841049,-977.7675008,0.0003041,14]
[340015450,1728331841061,-977.7675008,0.0003041,30]
[340015451,1728331841072,-177.30047507,0.00030493,2]
[340015452,1728331841081,-204.740111,0.00030525,2]
[340015453,1728331841090,-1075.1039304,0.00030595,2]
[340015454,1728331841099,-186.73857863,0.0003065,2]
[340015455,1728331841108,-300.0,0.000307,3]
[340015456,1728331841117,-500.0,0.0003082,5]
[340015457,1728331841126,-587.0,0.00030996,2]
[340015458,1728331841135,-1504.0,0.00031067,3]
[340015459,1728331841144,-177.30047507,0.000311,2]
[340015460,1728331841153,-1000.0,0.000311,2]
[340015461,1728331841162,-11787.7234725,0.0003119,4]
[340015462,1728331841171,-798.67595127,0.000312,120]
[340015463,1728331841181,-151.0,0.000312,7]
[340015464,1728331841191,-151.0,0.000312,7]
[340015465,1728331841202,-151.0,0.000312,7]
[340015466,1728331841211,-698.426987,0.000312,7]
[340015467,1728331841222,-698.426987,0.000312,7]
[340015468,1728331841232,-171.035706,0.000312,7]
[340015469,1728331841243,-454.779098,0.000312,7]
[340015470,1728331841255,-151.0,0.000312,7]
[340015471,1728331841264,-171.035706,0.000312,7]
[340015472,1728331841274,-151.0,0.000312,7]
[340015473,1728331841286,-454.779098,0.000312,7]
[340015474,1728331841296,-151.0,0.000312,7]
[340015475,1728331841308,-332.42312,0.000312,7]
[340015476,1728331841318,-332.42312,0.000312,7]
[340015477,1728331841329,-151.0,0.000312,7]
[340015478,1728331841339,-151.0,0.000312,7]
[340015479,1728331841348,-151.0,0.000312,7]
[340015480,1728331841359,-151.0,0.000312,7]
[340015481,1728331841369,-221.273354,0.000312,7]
[340015482,1728331841379,-151.0,0.000312,7]
[340015483,1728331841389,-151.0,0.000312,7]
[340015484,1728331841400,-151.0,0.000312,7]
[340015485,1728331841410,-509.183179,0.000312,7]
[340015486,1728331841421,-509.183179,0.000312,7]
[340015487,1728331841431,-36960.91508659,0.000312,120]
[340015528,1728331843236,-8669.34768305,0.000312,120]
[340015566,1728331846230,-19897.37626065,0.000312,120]
[340015568,1728331846240,-272.49150215,0.000312,2]
[340015570,1728331846249,-500.0,0.00031213,5]
[340015572,1728331846262,-500.0,0.00031213,5]
[340015574,1728331846272,-429.92893177,0.00031213,5]
[340015575,1728331846282,-500.0,0.00031225,5]
[340015577,1728331846291,-20002.4893284,0.00031263,4]
[340015579,1728331846302,-11787.7234725,0.0003127,4]
[340015581,1728331846312,-500.0,0.00031273,5]
[340015582,1728331846322,-500.0,0.00031273,5]
[340015584,1728331846333,-548.83407114,0.00031273,5]
[340015586,1728331846343,-500.0,0.00031273,5]
[340015588,1728331846354,-500.0,0.00031273,5]
[340015590,1728331846365,-500.0,0.00031273,5]
[340015592,1728331846374,-500.0,0.00031273,5]
[340015593,1728331846384,-500.0,0.00031273,5]
[340015595,1728331846394,-500.0,0.00031273,5]
[340015597,1728331846403,-500.0,0.00031273,5]
[340015599,1728331846413,-161.3130279,0.00031273,5]
[340015601,1728331846423,-169.0413682,0.00031273,5]
[340015602,1728331846433,-158.52250797,0.00031273,5]
[340015604,1728331846443,-500.0,0.00031273,5]
[340015606,1728331846453,-500.0,0.00031273,5]
[340015608,1728331846462,-167.52214389,0.00031273,5]
[340015609,1728331846472,-167.5,0.00031273,5]
[340015611,1728331846481,-500.0,0.00031273,5]
[340015613,1728331846491,-500.0,0.00031273,5]
[340015615,1728331846501,-151.0,0.0003128,7]
[340015617,1728331846511,-151.0,0.0003128,7]
[340015618,1728331846521,-151.0,0.0003128,7]
[340015620,1728331846531,-151.0,0.0003128,7]
[340015622,1728331846541,-734.633046,0.0003128,7]
[340015624,1728331846555,-151.0,0.0003128,7]
[340015626,1728331846565,-151.0,0.0003128,7]
[340015628,1728331846575,-151.0,0.0003128,7]
[340015629,1728331846585,-151.0,0.0003128,7]
[340015631,1728331846596,-151.0,0.0003128,7]
[340015633,1728331846608,-1326.25102,0.0003128,7]
[340015635,1728331846618,-1326.25102,0.0003128,7]
[340015637,1728331846629,-151.0,0.0003128,7]
[340015639,1728331846639,-151.0,0.0003128,7]
[340015641,1728331846650,-151.0,0.0003128,7]
[340015642,1728331846661,-192.994374,0.0003128,7]
[340015643,1728331846671,-192.994374,0.0003128,7]
[340015644,1728331846681,-20002.4893284,0.0003128,4]
[340015645,1728331846691,-23575.446945,0.0003128,4]
[340015646,1728331846700,-151.0,0.0003129,7]
[340015647,1728331846710,-151.0,0.0003129,7]
[340015648,1728331846720,-151.0,0.0003129,7]
[340015649,1728331846730,-151.0,0.0003129,7]
[340015650,1728331846740,-151.0,0.0003129,7]
[340015651,1728331846750,-151.0,0.0003129,7]
[340015652,1728331846760,-151.0,0.0003129,7]
[340015653,1728331846770,-151.0,0.0003129,7]
[340015654,1728331846781,-270.005584,0.0003129,7]
[340015655,1728331846791,-151.0,0.0003129,7]
[340015656,1728331846801,-151.0,0.0003129,7]
[340015657,1728331846811,-151.0,0.0003129,7]
[340015658,1728331846820,-151.0,0.0003129,7]
[340015659,1728331846830,-151.0,0.0003129,7]
[340015660,1728331846840,-151.0,0.0003129,7]
[340015661,1728331846850,-151.0,0.0003129,7]
[340015662,1728331846862,-151.0,0.0003129,7]
[340015663,1728331846872,-151.0,0.0003129,7]
[340015664,1728331846882,-151.0,0.0003129,7]
[340015665,1728331846891,-151.0,0.0003129,7]
[340015666,1728331846901,-151.0,0.0003129,7]
[340015667,1728331846911,-151.0,0.0003129,7]
[340015668,1728331846921,-151.0,0.0003129,7]
[340015669,1728331846931,-151.0,0.0003129,7]
[340015670,1728331846942,-151.0,0.0003129,7]
[340015671,1728331846952,-151.0,0.0003129,7]
[340015672,1728331846962,-151.0,0.0003129,7]
[340015673,1728331846972,-734.633046,0.0003129,7]
[340015674,1728331846982,-734.633046,0.0003129,7]
[340015675,1728331846992,-216.533696,0.0003129,7]
[340015676,1728331847002,-216.533696,0.0003129,7]
[340015677,1728331847012,-216.533696,0.0003129,7]
[340015678,1728331847022,-216.533696,0.0003129,7]
[340015679,1728331847033,-698.426987,0.0003129,7]
[340015680,1728331847043,-151.0,0.0003129,7]
[340015681,1728331847052,-698.426987,0.0003129,7]
[340015682,1728331847063,-171.035706,0.0003129,7]
[340015683,1728331847073,-454.779098,0.0003129,7]
[340015684,1728331847082,-151.0,0.0003129,7]
[340015685,1728331847092,-171.035706,0.0003129,7]
[340015686,1728331847102,-151.0,0.0003129,7]
[340015687,1728331847112,-454.779098,0.0003129,7]
[340015688,1728331847122,-332.42312,0.0003129,7]
[340015689,1728331847132,-332.42312,0.0003129,7]
[340015690,1728331847141,-295.934908,0.0003129,7]
[340015691,1728331847152,-151.0,0.0003129,7]
[340015692,1728331847162,-151.0,0.0003129,7]
[340015693,1728331847172,-151.0,0.0003129,7]
[340015694,1728331847183,-151.0,0.0003129,7]
[340015695,1728331847193,-151.0,0.0003129,7]
[340015696,1728331847203,-100012.446642,0.0003129,4]
[340015697,1728331847214,-106089.511253,0.0003129,4]
[340015698,1728331847223,-151.0,0.0003129,7]
[340015699,1728331847233,-151.0,0.0003129,7]
[340015700,1728331847244,-151.0,0.0003129,7]
[340015701,1728331847254,-509.183179,0.0003129,7]
[340015702,1728331847265,-151.0,0.0003129,7]
[340015703,1728331847275,-509.183179,0.0003129,7]
[340015704,1728331847285,-1326.25102,0.0003129,7]
[340015705,1728331847296,-1326.25102,0.0003129,7]
[340015706,1728331847305,-151.0,0.0003129,7]
[340015707,1728331847315,-151.0,0.0003129,7]
[340015708,1728331847324,-151.0,0.0003129,7]
[340015709,1728331847335,-151.0,0.0003129,7]
[340015710,1728331847346,-151.0,0.0003129,7]
[340015711,1728331847357,-192.994374,0.0003129,7]
[340015712,1728331847367,-192.994374,0.0003129,7]
[340015713,1728331847378,-192.994374,0.0003129,7]
[340015714,1728331847388,-192.994374,0.0003129,7]
[340015715,1728331847400,-160.0,0.00031299,10]
[340015716,1728331847410,-21200.991245,0.000313,14]
[340015723,1728332848183,-195.17462,0.00018,2]
[340015724,1728332848208,-195.17462,0.00024262,2]
[340015725,1728332848232,-182.0,0.000277,2]
[340015726,1728332848254,-221.088491,0.00028564,2]
[340015727,1728332848277,-153.68125924,0.00028604,2]
[340015728,1728332848527,-300.0,0.00028612,2]
[340015729,1728332848548,-300.0,0.00028612,2]
[340015730,1728332848570,-537.52425129,0.00028613,2]
[340015735,1728332946346,-192.209617,0.00018,2]
[340015736,1728332946369,-2317.11182549,0.0002,5]
[340015753,1728332962195,-2427.97939311,0.0002,5]
[340015808,1728333032265,-192.209617,0.00024262,2]
[340015809,1728333032275,-159.5357347,0.0002801,2]
[340015810,1728333032286,-300.0,0.00028612,2]
[340015811,1728333032297,-300.0,0.00028612,2]
[340015812,1728333032307,-9622.89823321,0.00028613,2]
[340015813,1728333032319,-300.0,0.000287,2]
[340015814,1728333032330,-162.257069,0.00028814,2]
[340015815,1728333032339,-162.257069,0.00028939,2]
[340015816,1728333032350,-162.257069,0.00029064,2]
[340015817,1728333032360,-162.257069,0.00029189,2]
[340015818,1728333032369,-159.534834,0.00029298,2]
[340015819,1728333032378,-162.257069,0.00029314,2]
[340015820,1728333032388,-162.257069,0.00029439,2]
[340015821,1728333032397,-162.257069,0.00029564,2]
[340015822,1728333032406,-162.257069,0.00029689,2]
[340015823,1728333032415,-300.0,0.000297,2]
[340015824,1728333032424,-162.257069,0.00029815,2]
[340015825,1728333032433,-162.257069,0.0002994,2]
[340015826,1728333032443,-152.0,0.0003,2]
[340015827,1728333032452,-169.0,0.0003,2]
[340015828,1728333032462,-162.257069,0.00030065,2]
[340015829,1728333032470,-162.257069,0.0003019,2]
[340015830,1728333032479,-153.0,0.00030234,2]
[340015831,1728333032489,-153.0,0.00030234,2]
[340015832,1728333032501,-153.0,0.00030234,2]
[340015833,1728333032512,-153.0,0.00030234,2]
[340015834,1728333032523,-153.0,0.00030234,2]
[340015835,1728333032534,-153.0,0.00030234,2]
[340015836,1728333032543,-153.0,0.00030234,2]
[340015837,1728333032552,-153.0,0.00030234,2]
[340015838,1728333032562,-153.0,0.00030234,2]
[340015839,1728333032574,-153.0,0.00030234,2]
[340015840,1728333032583,-153.0,0.00030234,2]
[340015841,1728333032593,-153.0,0.00030234,2]
[340015842,1728333032603,-153.0,0.00030234,2]
[340015843,1728333032613,-153.0,0.0003024,2]
[340015844,1728333032623,-153.0,0.0003024,2]
[340015845,1728333032633,-153.0,0.0003024,2]
[340015846,1728333032645,-245.0,0.0003024,2]
[340015847,1728333032655,-153.0,0.0003024,2]
[340015848,1728333032665,-202.67813152,0.00030313,25]
[340015849,1728333032675,-162.257069,0.00030315,2]
[340015850,1728333032685,-192.209617,0.00030525,2]
[340015851,1728333032696,-300.0,0.000307,3]
[340015852,1728333032707,-194.7565949,0.00030849,2]
[340015853,1728333032718,-420.0,0.00030881,2]
[340015854,1728333032729,-153.0,0.00031014,2]
[340015855,1728333032738,-7761.04653969,0.0003118,2]
[340015856,1728333032748,-276.46862687,0.00031199,2]
[340015857,1728333032758,-306.79506414,0.000312,2]
[340015858,1728333032767,-304.40694577,0.00031273,5]
[340015859,1728333032776,-500.0,0.00031273,5]
[340015860,1728333032786,-500.0,0.00031273,5]
[340015861,1728333032795,-500.0,0.00031273,5]
[340015862,1728333032804,-161.0,0.0003128,3]
[340015863,1728333032814,-483.04,0.0003128,3]
[340015864,1728333032823,-11837.29,0.0003128,10]
[340015865,1728333032833,-157.62184011,0.00031289,2]
[340015866,1728333032842,-500.0,0.00031289,2]
[340015867,1728333032852,-253.41701098,0.00031289,2]
[340015868,1728333032861,-365.90705865,0.00031289,2]
[340015869,1728333032870,-500.0,0.00031289,2]
[340015870,1728333032879,-500.0,0.00031289,2]
[340015871,1728333032889,-357.98423247,0.00031289,2]
[340015872,1728333032898,-500.0,0.00031289,2]
[340015873,1728333032907,-325.92250027,0.00031289,30]
[340015874,1728333032916,-85285.47930849,0.0003129,4]
[340015875,1728333033238,-6747.11726299,0.0003129,4]
[340015876,1728333033251,-1055.91747368,0.0003129,4]
[340015924,1728333038428,-9864.41,0.0003128,10]
[340015926,1728333038442,-1526.69091078,0.0003129,4]
[340015929,1728333038455,-54685.977979,0.0003129,4]
[340015931,1728333038469,-938.31737984,0.0003129,4]
[340015937,1728333038539,-31609.61991847,0.0003129,4]
[340015955,1728333040383,-6254.4,0.0003129,4]
[340015957,1728333040395,-1960.1761839,0.0003129,4]
[340015959,1728333040442,-2216.61571064,0.0003129,4]
[340015979,1728333043596,-2998.9316277,0.0003129,4]
[340015980,1728333043614,-5078.4031,0.0003129,4]
[340015992,1728333046313,-8891.37132451,0.0003129,4]
[340015993,1728333046322,-11050.9907555,0.0003129,4]
[340015994,1728333046332,-160.0,0.00031299,10]
[340015995,1728333046341,-84768.89498985,0.000313,14]
[340015999,1728333686908,-209.838847,0.00018,2]
[340016001,1728333939996,184.061153,0.00018,2]
[340016002,1728334042154,-23.793956,0.00018,2]
[340016003,1728334042176,-191.75240557,0.00024162,4]
[340016004,1728334042199,-421.73353234,0.00024162,2]
[340016005,1728334042223,-207.855109,0.00024262,2]
[340016006,1728334042244,-190.7930735,0.00025788,2]
[340016007,1728334042266,-170.182652,0.00026118,2]
[340016008,1728334042289,-170.182652,0.00026254,2]
[340016009,1728334042313,-170.182652,0.0002639,2]
[340016010,1728334042337,-170.182652,0.00026526,2]
[340016011,1728334042362,-170.182652,0.00026662,2]
[340016012,1728334042384,-170.182652,0.00026798,2]
[340016013,1728334042408,-159.535284,0.00026882,2]
[340016014,1728334042433,-170.182652,0.00026935,2]
[340016015,1728334042454,-2773.9969409,0.00026952,2]
[340016016,1728334042478,-181.75338535,0.00026971,2]
[340016017,1728334042503,-170.182652,0.00027071,2]
[340016018,1728334042525,-170.182652,0.00027207,2]
[340016019,1728334042547,-300.0,0.00027211,2]
[340016020,1728334042566,-300.0,0.00027211,2]
[340016021,1728334042587,-516.06592684,0.00027213,14]
[340016022,1728334049155,-79.7780041,0.00027213,14]
[340016023,1728334049177,-327.42344898,0.00027213,2]
[340016049,1728334232547,-63.44296932,0.00025788,2]
[340016055,1728334232596,-969.76669831,0.00025788,2]
[340016058,1728334232606,-365.08221267,0.00025788,2]
[340016060,1728334232615,-51.84074704,0.00025888,2]
[340016062,1728334232628,-107.69408696,0.00025888,2]
[340016065,1728334232642,-170.182652,0.00027343,2]
[340016067,1728334232651,-170.182652,0.00027479,2]
[340016069,1728334232663,-300.0,0.00028405,2]
[340016071,1728334232673,-300.0,0.00028405,2]
[340016073,1728334232686,-24900.0,0.00028406,2]
[340016076,1728334232698,-174.260103,0.00028711,2]
[340016078,1728334232709,-174.260103,0.00028854,2]
[340016080,1728334232720,-153.68125925,0.00029031,2]
[340016082,1728334232732,-572.20237268,0.00029312,2]
[340016084,1728334232742,-194.54,0.00029467,23]
[340016087,1728334232754,-202.50751669,0.00029467,23]
[340016089,1728334232763,-500.0,0.00029735,2]
[340016091,1728334232773,-572.20237264,0.00029782,2]
[340016093,1728334232782,-7692.0745849,0.000299,2]
[340016094,1728334232792,-397.22928729,0.000299,14]
[340016095,1728334232801,-229.0,0.0003,2]
[340016096,1728334232810,-150.0,0.000301,2]
[340016097,1728334232820,-153.0,0.00030222,2]
[340016098,1728334232829,-153.0,0.00030222,2]
[340016099,1728334232839,-153.0,0.00030222,2]
[340016100,1728334232848,-153.0,0.00030222,2]
[340016101,1728334232858,-153.0,0.00030222,2]
[340016102,1728334232867,-153.0,0.00030223,2]
[340016103,1728334232876,-153.0,0.00030223,2]
[340016104,1728334232888,-153.0,0.00030223,2]
[340016105,1728334232899,-153.0,0.00030223,2]
[340016106,1728334232910,-153.0,0.00030223,2]
[340016107,1728334232921,-153.0,0.00030228,2]
[340016108,1728334232931,-153.0,0.00030228,2]
[340016109,1728334232942,-153.0,0.00030228,2]
[340016110,1728334232953,-153.0,0.00030228,2]
[340016111,1728334232963,-153.0,0.00030228,2]
[340016112,1728334232973,-500.0,0.00030235,2]
[340016113,1728334232985,-572.20237264,0.00030251,2]
[340016114,1728334232995,-207.855109,0.00030525,2]
[340016115,1728334233005,-413.1195984,0.00030548,2]
[340016116,1728334233015,-413.1195984,0.00030548,2]
[340016117,1728334233026,-413.1195984,0.00030548,2]
[340016118,1728334233035,-413.1195984,0.00030548,2]
[340016119,1728334233044,-420.0,0.00030664,2]
[340016120,1728334233054,-572.20237264,0.00030721,2]
[340016121,1728334233065,-500.0,0.00030735,2]
[340016122,1728334233075,-306.0,0.00030877,2]
[340016123,1728334233089,-7196.86532819,0.00030972,2]
[340016124,1728334233099,-500.96863389,0.00031067,5]
[340016125,1728334233110,-625.90537703,0.00031067,5]